bitfinex-derivatives/quotes_SOLF0:USTF0_20250411
["timestamp","ask_amount","ask_price","bid_price","bid_amount"]
[1744395328517,36.76,121.41,121.38,10.16828202]
[1744395328822,0.06040323,121.4,121.39,8.2418]
[1744395329923,0.06040323,121.4,121.39,18.41008202]
[1744395330627,46.96868525,121.4,121.37,0.05563047]
[1744395330826,10.16828202,121.38,121.31,10.16828202]
[1744395331126,10.16828202,121.36,121.31,10.16828202]
[1744395331325,36.74,121.35,121.31,10.16828202]
[1744395331519,36.74,121.36,121.32,10.16828202]
[1744395331720,46.90828202,121.36,121.34,8.2448]
[1744395332027,10.22267705,121.35,121.33,0.05486752]
[1744395332224,10.22267705,121.35,121.33,8.30046752]
[1744395332829,0.05439503,121.35,121.34,8.2452]
[1744395338339,0.05439503,121.35,121.33,8.30046752]
[1744395338633,15.95399759,121.35,121.33,8.30046752]
[1744395339037,15.95399759,121.35,121.27,4.3208]
[1744395339230,15.89960256,121.32,121.26,2.2878]
[1744395339425,36.74,121.31,121.3,8.2476]
[1744395339625,36.74,121.31,121.26,2.2878]
[1744395340129,0.06327831,121.3,121.29,8.2483]
[1744395341334,0.06327831,121.3,121.28,8.249]
[1744395341530,0.06327831,121.3,121.27,0.05367086]
[1744395342835,0.06327831,121.3,121.28,8.2493]
[1744395345332,15.96288087,121.3,121.27,0.05367086]
[1744395345736,15.96288087,121.3,121.27,8.30347086]
[1744395346138,15.89960256,121.28,121.2,15.89960256]
[1744395346340,36.76,121.27,121.25,8.2513]
[1744395346636,36.76,121.27,121.2,15.89960256]
[1744395346837,36.76,121.27,121.25,8.2508]
[1744395347038,45.0101,121.27,121.25,8.2508]
[1744395347236,36.82103228,121.27,121.25,0.05605478]
[1744395347840,45.07153228,121.27,121.25,0.05605478]
[1744395348143,45.07153228,121.27,121.25,8.30735478]
[1744395349240,8.2507,121.26,121.25,0.05605478]
[1744395349443,8.2507,121.26,121.19,6.4458]
[1744395349444,15.89960256,121.26,121.19,6.4458]
[1744395349942,8.2514,121.25,121.23,8.2523]
[1744395350242,15.89960256,121.26,121.23,8.2523]
[1744395350436,0.06301387,121.26,121.23,0.05876638]
[1744395351138,0.06301387,121.26,121.25,8.2513]
[1744395353441,36.72,121.3,121.24,6.3979]
[1744395354331,8.249,121.29,121.25,62.0]
[1744395354538,0.0533003,121.28,121.26,0.06130096]
[1744395355142,0.0533003,121.28,121.26,8.31180096]
[1744395355443,0.0533003,121.28,121.26,0.06130096]
[1744395355943,8.3029003,121.28,121.26,0.06130096]
[1744395357145,8.25,121.27,121.26,0.06130096]
[1744395359346,24.20260286,121.28,121.26,0.06130096]
[1744395359654,24.20260286,121.28,121.26,8.31190096]
[1744395359949,24.20260286,121.28,121.26,0.06130096]
[1744395360149,0.0533003,121.28,121.26,0.06130096]
[1744395360350,0.0533003,121.28,121.27,8.25]
[1744395360551,0.0533003,121.28,121.23,15.89960256]
[1744395360848,15.89960256,121.24,121.14,15.89960256]
[1744395361048,15.89960256,121.22,121.15,2.264]
[1744395361252,24.15360256,121.22,121.15,2.264]
[1744395361454,15.89960256,121.22,121.15,2.264]
[1744395361750,0.05828372,121.2,121.17,0.06310365]
[1744395363553,15.95788628,121.2,121.17,0.06310365]
[1744395364154,8.2558,121.19,121.17,0.06310365]
[1744395364348,15.95788628,121.2,121.17,0.06310365]
[1744395364552,15.89960256,121.18,121.17,0.06310365]
[1744395365051,15.89960256,121.18,121.13,2.2635]
[1744395365249,15.89960256,121.16,121.13,2.2635]
[1744395365450,24.15750256,121.16,121.13,2.2635]
[1744395365651,15.89960256,121.16,121.11,4.5667]
[1744395365859,15.89960256,121.14,121.07,36.72]
[1744395366154,8.2598,121.13,121.07,38.8407]
[1744395366354,0.0595166,121.12,121.07,38.8407]
[1744395366551,0.0595166,121.12,121.07,36.72]
[1744395366552,15.95911916,121.12,121.07,36.72]
[1744395366751,0.0595166,121.12,121.07,36.72]
[1744395367149,8.3201166,121.12,121.06,4.5411]
[1744395367350,0.0595166,121.12,121.06,41.2611]
[1744395367656,0.0595166,121.12,121.06,4.5411]
[1744395368352,24.16090256,121.11,121.06,4.5411]
[1744395368855,15.89960256,121.11,121.06,4.5411]
[1744395369854,8.2628,121.09,121.06,4.5411]
[1744395370254,8.32029088,121.09,121.06,4.5411]
[1744395371555,24.21989344,121.09,121.04,2.1207]
[1744395371956,24.21989344,121.09,121.04,10.3863]
[1744395372159,8.263,121.08,121.04,2.1207]
[1744395372359,15.95709344,121.09,121.04,2.1207]
[1744395372851,8.263,121.08,121.04,2.1207]
[1744395373059,15.95709344,121.09,121.04,10.3863]
[1744395373358,15.95709344,121.09,121.0,4.4971]
[1744395373660,0.05755762,121.06,121.03,8.2659]
[1744395373856,0.05755762,121.06,121.01,38.876]
[1744395374460,0.05755762,121.06,121.04,8.2653]
[1744395374662,0.05755762,121.06,121.01,100.876]
[1744395376059,0.05755762,121.06,121.03,8.2658]
[1744395377557,0.05755762,121.06,121.01,100.896]
[1744395378159,0.05755762,121.06,121.02,15.89960256]
[1744395378453,0.05755762,121.06,121.05,8.265]
[1744395381165,0.05755762,121.06,121.04,8.2655]
[1744395382561,0.05755762,121.06,121.01,38.896]
[1744395382763,0.05755762,121.06,121.01,2.136]
[1744395383563,8.32225762,121.06,121.01,2.136]
[1744395383965,15.89960256,121.05,120.98,36.7]
[1744395384359,0.05982107,121.03,120.98,36.7]
[1744395384665,0.05982107,121.03,121.0,8.2677]
[1744395384963,0.05982107,121.03,120.98,36.7]
[1744395385158,15.95942363,121.03,120.98,8.2694]
[1744395385364,15.95942363,121.03,120.97,6.5126]
[1744395385761,24.22602363,121.03,120.97,6.5126]
[1744395385962,15.95942363,121.03,120.97,6.5126]
[1744395386556,8.2681,121.01,120.97,14.7827]
[1744395386761,0.05712712,121.0,120.97,14.7827]
[1744395387272,8.32552712,121.0,120.97,14.7827]
[1744395387570,0.05712712,121.0,120.97,14.7827]
[1744395387770,0.05712712,121.0,120.98,8.2697]
[1744395387974,0.05712712,121.0,120.97,6.5126]
[1744395388272,0.05712712,121.0,120.99,8.2691]
[1744395388471,44.986,121.04,120.97,84.41220256]
[1744395388674,15.89960256,121.05,120.97,84.41220256]
[1744395388875,8.2655,121.05,121.01,8.2672]
[1744395389074,36.72,121.07,120.99,36.72]
[1744395389271,15.89960256,121.06,120.99,36.72]
[1744395389576,0.06110625,121.04,121.01,0.06118898]
[1744395390675,0.06110625,121.04,121.03,8.2663]
[1744395391471,15.89960256,121.09,121.05,8.265]
[1744395391670,36.72,121.1,121.03,15.89960256]
[1744395391871,44.9817,121.1,121.03,52.61960256]
[1744395392075,15.89960256,121.11,121.03,52.61960256]
[1744395392374,54.89830256,121.13,121.03,52.61960256]
[1744395392577,0.05329626,121.08,121.07,8.2631]
[1744395392778,8.2614,121.11,121.03,52.61960256]
[1744395392977,0.05674432,121.09,121.06,0.05291219]
[1744395393172,15.95634688,121.09,121.06,0.05291219]
[1744395393372,15.89960256,121.07,121.06,0.05291219]
[1744395394078,24.16320256,121.07,121.06,0.05291219]
[1744395394275,15.95634688,121.09,121.06,0.05291219]
[1744395395075,8.2633,121.08,121.06,0.05291219]
[1744395395580,15.95634688,121.09,121.06,0.05291219]
[1744395396180,8.2632,121.08,121.06,0.05291219]
[1744395396976,8.2629,121.08,121.06,0.05291219]
[1744395397578,24.21914688,121.09,121.06,0.05291219]
[1744395397979,15.95634688,121.09,121.06,8.31691219]
[1744395398179,24.21884688,121.09,121.06,8.31691219]
[1744395399085,15.95634688,121.09,121.06,8.31691219]
[1744395399283,15.95634688,121.09,121.06,0.05291219]
[1744395400082,15.95634688,121.09,121.07,8.2633]
[1744395400681,15.95634688,121.09,121.06,0.05291219]
[1744395401782,15.89960256,121.07,121.06,0.05291219]
[1744395402085,52.61960256,121.07,121.0,2.1104]
[1744395402387,8.265,121.05,121.02,8.2667]
[1744395402886,8.2646,121.06,121.03,8.2663]
[1744395403086,8.32379415,121.06,121.03,8.32187188]
[1744395403486,8.2651,121.05,121.03,0.05557188]
[1744395404291,8.2651,121.05,121.03,8.32187188]
[1744395404483,15.89960256,121.05,121.03,0.05557188]
[1744395405385,0.05919415,121.06,121.03,8.32137188]
[1744395405687,8.32379415,121.06,121.03,8.32137188]
[1744395406190,0.05919415,121.06,121.04,8.2656]
[1744395406487,0.05919415,121.06,121.03,8.32157188]
[1744395406686,8.32349415,121.06,121.03,0.05557188]
[1744395406986,8.32349415,121.06,121.03,8.32157188]
[1744395410386,0.05919415,121.06,121.03,0.05557188]
[1744395410886,0.05919415,121.06,121.04,8.2656]
[1744395411086,0.05919415,121.06,121.03,0.05557188]
[1744395411889,0.05919415,121.06,121.05,8.265]
[1744395412991,0.05919415,121.06,121.03,0.05557188]
[1744395413493,0.05919415,121.06,121.05,8.265]
[1744395413889,8.262,121.1,121.04,4.2276]
[1744395414192,8.262,121.1,121.07,8.2633]
[1744395414393,8.2627,121.09,121.04,4.2276]
[1744395414989,8.2621,121.1,121.04,4.2276]
[1744395415191,0.05416351,121.08,121.07,8.2633]
[1744395415989,8.31726351,121.08,121.05,0.05314385]
[1744395416388,0.05416351,121.08,121.05,0.05314385]
[1744395416694,8.2641,121.07,121.05,0.05314385]
[1744395418093,0.05416351,121.08,121.05,8.31794385]
[1744395418896,8.2637,121.07,121.05,0.05314385]
[1744395419095,0.05416351,121.08,121.05,0.05314385]
[1744395419394,15.89960256,121.07,121.05,0.05314385]
[1744395419596,8.2643,121.06,121.05,0.05314385]
[1744395420698,15.89960256,121.07,121.05,0.05314385]
[1744395421501,24.16360256,121.07,121.05,0.05314385]
[1744395421697,15.89960256,121.07,121.05,0.05314385]
[1744395422195,15.89960256,121.07,121.05,8.31774385]
[1744395422500,15.89960256,121.07,121.05,0.05314385]
[1744395422800,24.16360256,121.07,121.05,0.05314385]
[1744395423703,8.31746351,121.08,121.05,8.31804385]
[1744395424003,0.05416351,121.08,121.05,0.05314385]
[1744395424191,0.05416351,121.08,121.05,8.31774385]
[1744395424395,8.31756351,121.08,121.05,8.31774385]
[1744395424905,15.95376607,121.08,121.05,0.05314385]
[1744395425505,8.2643,121.06,121.05,0.05314385]
[1744395426607,8.264,121.07,121.05,0.05314385]
[1744395426804,15.95376607,121.08,121.05,0.05314385]
[1744395427006,15.95376607,121.08,121.05,8.31764385]
[1744395427196,24.21696607,121.08,121.05,8.31764385]
[1744395428009,15.95376607,121.08,121.05,0.05314385]
[1744395428406,15.89960256,121.06,120.99,36.66]
[1744395428706,15.89960256,121.02,120.95,2.1288]
[1744395428905,24.16940256,120.98,120.92,29.80062768]
[1744395429112,15.89960256,120.98,120.92,28.3624923]
[1744395429312,8.2726,120.94,120.92,28.3624923]
[1744395429511,15.89960256,120.94,120.91,75.63331281]
[1744395429712,15.89960256,120.92,120.91,75.63331281]
[1744395430010,15.89960256,120.92,120.91,75.69146201]
[1744395430205,52.55960256,120.92,120.9,113.44996922]
[1744395430606,8.2752,120.9,120.89,189.08328204]
[1744395430808,24.17480256,120.9,120.89,189.08328204]
[1744395431012,15.89960256,120.9,120.85,2.1671]
[1744395431207,8.2759,120.89,120.85,10.4451]
[1744395431506,8.2759,120.89,120.88,236.37750973]
[1744395431707,15.95697723,120.9,120.88,236.37750973]
[1744395431906,24.23257723,120.9,120.88,236.37750973]
[1744395432207,0.05737467,120.9,120.88,236.37750973]
[1744395432407,0.05737467,120.9,120.88,0.02340718]
[1744395432408,24.23217723,120.9,120.88,0.02340718]
[1744395432607,15.95697723,120.9,120.88,0.02340718]
[1744395433300,0.05737467,120.9,120.88,0.02340718]
[1744395434113,8.33297467,120.9,120.88,0.02340718]
[1744395434413,0.05737467,120.9,120.88,0.02340718]
[1744395434706,8.2759,120.89,120.88,0.02340718]
[1744395434910,0.05737467,120.9,120.88,0.02340718]
[1744395437113,0.05737467,120.9,120.89,8.2759]
[1744395438311,65.71229333,120.96,120.89,8.28]
[1744395438507,65.71229333,120.96,120.9,25.63564433]
[1744395438710,29.01229333,120.96,120.92,25.63564433]
[1744395439313,0.05890928,120.95,120.93,0.05932398]
[1744395439511,0.05890928,120.95,120.94,8.2721]
[1744395440105,0.05890928,120.95,120.93,0.05932398]
[1744395440911,36.75890928,120.95,120.93,0.05932398]
[1744395441111,45.03120928,120.95,120.93,0.05932398]
[1744395441313,36.75890928,120.95,120.93,0.05932398]
[1744395442113,8.2735,120.93,120.88,8.2761]
[1744395443114,0.06227695,120.92,120.89,0.02145787]
[1744395444211,0.06227695,120.92,120.9,8.2748]
[1744395444418,0.06227695,120.92,120.89,0.02145787]
[1744395444815,0.06227695,120.92,120.9,8.2747]
[1744395445215,0.06227695,120.92,120.89,0.02145787]
[1744395445416,0.06227695,120.92,120.89,8.29705787]
[1744395446018,0.06227695,120.92,120.89,0.02145787]
[1744395446516,36.64,120.91,120.89,0.02145787]
[1744395446820,8.2752,120.9,120.89,0.02145787]
[1744395447821,8.2774,120.87,120.84,8.279]
[1744395448915,8.33375518,120.87,120.84,8.279]
[1744395449721,0.05635518,120.87,120.84,8.279]
[1744395451116,0.05635518,120.87,120.82,62.0]
[1744395451317,36.69635518,120.87,120.81,4.4711]
[1744395452221,8.278,120.86,120.83,8.2797]
[1744395452523,36.69635518,120.87,120.81,4.4711]
[1744395452723,8.2791,120.85,120.82,8.2806]
[1744395453423,36.69635518,120.87,120.79,2.1514]
[1744395453721,36.69635518,120.87,120.78,27.86304433]
[1744395453722,0.05578915,120.84,120.75,25.63564433]
[1744395453925,44.9404,120.83,120.79,8.2824]
[1744395454117,0.05776144,120.81,120.76,6.6563]
[1744395454322,0.05776144,120.81,120.77,25.63564433]
[1744395454520,0.05776144,120.81,120.79,8.2823]
[1744395454722,0.05776144,120.81,120.77,25.63564433]
[1744395454922,0.05776144,120.81,120.79,25.63564433]
[1744395455123,0.05776144,120.81,120.8,8.2821]
[1744395456724,0.05776144,120.81,120.79,8.2825]
[1744395457123,0.05776144,120.81,120.77,62.29564433]
[1744395457422,0.05776144,120.81,120.79,8.2825]
[1744395458426,0.05776144,120.81,120.78,8.2831]
[1744395459424,8.33916144,120.81,120.78,8.2831]
[1744395459823,8.33916144,120.81,120.77,8.2838]
[1744395460022,8.33916144,120.81,120.76,68.6563]
[1744395460225,8.33916144,120.81,120.77,8.2837]
[1744395460724,8.33916144,120.81,120.77,8.2835]
[1744395461226,8.2821,120.8,120.77,8.2835]
[1744395462536,0.05776144,120.81,120.76,6.6563]
[1744395462730,36.66,120.86,120.79,25.63564433]
[1744395463027,8.2787,120.85,120.79,25.63564433]
[1744395463531,36.66,120.86,120.79,87.63564433]
[1744395463735,36.66,120.86,120.83,8.2797]
[1744395463938,0.06057029,120.84,120.83,8.2797]
[1744395464129,29.01229333,120.87,120.86,8.278]
[1744395464329,29.01229333,120.88,120.86,8.278]
[1744395465132,29.06998332,120.88,120.86,8.33916203]
[1744395465633,29.06998332,120.88,120.87,8.2773]
[1744395466438,29.06998332,120.88,120.86,0.06116203]
[1744395466742,37.34658332,120.88,120.86,0.06116203]
[1744395467138,0.05768999,120.88,120.86,0.06116203]
[1744395467337,8.33458999,120.88,120.86,0.06116203]
[1744395467534,0.05768999,120.88,120.86,0.06116203]
[1744395468636,0.05768999,120.88,120.87,8.2773]
[1744395468837,0.05768999,120.88,120.86,0.06116203]
[1744395469235,0.05768999,120.88,120.87,8.2773]
[1744395469942,632.48,120.93,120.88,8.276]
[1744395470337,632.48,120.93,120.86,30.08084433]
[1744395470536,36.66,120.93,120.89,8.2756]
[1744395471044,8.32719759,120.92,120.9,0.05289793]
[1744395471343,0.05329759,120.92,120.9,0.05289793]
[1744395472242,36.66,120.96,120.93,8.2725]
[1744395472543,632.32,120.99,120.92,25.63564433]
[1744395472737,632.32,120.99,120.93,2.161]
[1744395473042,632.32,120.99,120.93,4.3308]
[1744395473243,36.62,120.99,120.94,25.63564433]
[1744395473445,0.06343288,120.97,120.95,8.33232104]
[1744395473643,0.06343288,120.97,120.95,0.06102104]
[1744395474043,0.06343288,120.97,120.96,8.2711]
[1744395474538,242.60349641,120.96,120.95,8.33242104]
[1744395475042,242.60349641,120.96,120.95,0.06102104]
[1744395477636,0.06343288,120.97,120.95,0.06102104]
[1744395477835,8.33423288,120.97,120.95,0.06102104]
[1744395478044,0.06343288,120.97,120.95,0.06102104]
[1744395479342,8.2711,120.96,120.95,0.06102104]
[1744395480337,25.69907721,120.97,120.88,25.63564433]
[1744395480537,25.63564433,120.95,120.85,43.1156]
[1744395480742,40.8531,120.94,120.85,43.1156]
[1744395480943,8.2735,120.93,120.89,8.2755]
[1744395481245,40.8531,120.94,120.89,8.2755]
[1744395481445,8.33077445,120.93,120.9,8.33749835]
[1744395481941,8.33077445,120.93,120.92,8.2739]
[1744395481942,0.05717445,120.93,120.92,8.2739]
[1744395482147,0.05717445,120.93,120.9,0.06259835]
[1744395482447,0.05717445,120.93,120.91,8.2745]
[1744395482648,0.05717445,120.93,120.9,0.06259835]
[1744395483045,0.05717445,120.93,120.92,8.2739]
[1744395483545,36.6,121.0,120.92,33.89564433]
[1744395483740,36.6,121.0,120.94,25.63564433]
[1744395484344,36.6,121.0,120.95,8.2715]
[1744395484650,8.33172143,120.99,120.96,0.06176585]
[1744395484839,0.06232143,120.99,120.96,0.06176585]
[1744395485449,0.06232143,120.99,120.97,8.2698]
[1744395485746,0.06232143,120.99,120.96,0.06176585]
[1744395486849,8.2704,120.97,120.96,0.06176585]
[1744395487351,8.2725,120.94,120.9,38.7767]
[1744395487549,36.58,120.96,120.9,2.1967]
[1744395487852,8.2722,120.95,120.91,8.274]
[1744395488450,0.05840699,120.94,120.92,0.05309134]
[1744395489353,0.05840699,120.94,120.92,8.32689134]
[1744395489758,0.05840699,120.94,120.92,0.05309134]
[1744395491152,0.05840699,120.94,120.92,8.32649134]
[1744395491356,0.05840699,120.94,120.92,0.05309134]
[1744395491656,0.05840699,120.94,120.93,8.2732]
[1744395492456,47.0923,120.99,120.92,25.68873567]
[1744395492653,8.2704,120.98,120.92,25.68873567]
[1744395492854,8.2704,120.98,120.92,0.05309134]
[1744395493255,38.8229,120.99,120.92,0.05309134]
[1744395493455,0.05698126,120.97,120.93,62.0]
[1744395493655,0.05698126,120.97,120.96,8.2711]
[1744395494957,8.2715,120.96,120.94,0.05774527]
[1744395496864,8.32778126,120.97,120.94,0.05774527]
[1744395498265,8.32778126,120.97,120.94,8.32994527]
[1744395499775,0.05698126,120.97,120.94,0.05774527]
[1744395500266,8.2718,120.95,120.94,0.05774527]
[1744395500767,44.8518,120.95,120.94,0.05774527]
[1744395501167,8.2735,120.93,120.9,8.2749]
[1744395501377,36.58,120.95,120.85,38.6789]
[1744395501670,8.2746,120.91,120.88,8.2762]
[1744395502361,36.59671789,120.91,120.88,0.0586496]
[1744395502766,44.87161789,120.91,120.88,8.3348496]
[1744395503165,36.59671789,120.91,120.88,0.0586496]
[1744395503366,25.63564433,120.9,120.81,3.60659294]
[1744395503572,25.63564433,120.9,120.79,36.54]
[1744395503767,8.279,120.85,120.81,8.2809]
[1744395503965,36.54,120.86,120.81,8.2809]
[1744395504368,36.54,120.86,120.82,0.06163399]
[1744395504572,8.3372796,120.85,120.82,0.06163399]
[1744395504867,0.0582796,120.85,120.82,0.06163399]
[1744395505467,0.0582796,120.85,120.82,8.34193399]
[1744395505774,0.0582796,120.85,120.82,0.06163399]
[1744395506272,8.2797,120.84,120.82,0.06163399]
[1744395507473,8.3372796,120.85,120.82,0.06163399]
[1744395507775,0.0582796,120.85,120.82,0.06163399]
[1744395508273,0.0582796,120.85,120.83,8.2797]
[1744395509166,0.0582796,120.85,120.82,8.34193399]
[1744395509366,8.3369796,120.85,120.82,0.06163399]
[1744395509562,0.0582796,120.85,120.82,0.06163399]
[1744395509767,0.0582796,120.85,120.82,8.34203399]
[1744395509969,8.3372796,120.85,120.82,0.06163399]
[1744395510165,0.0582796,120.85,120.82,0.06163399]
[1744395510367,8.2797,120.84,120.82,0.06163399]
[1744395510779,0.0582796,120.85,120.82,0.06163399]
[1744395511573,8.28,120.83,120.82,0.06163399]
[1744395512278,25.63564433,120.84,120.73,36.56]
[1744395512472,25.63564433,120.84,120.81,8.2809]
[1744395512473,36.56,120.83,120.81,8.2809]
[1744395512980,36.56,120.83,120.74,25.63564433]
[1744395513183,36.56,120.83,120.77,0.044085]
[1744395513386,0.05423893,120.81,120.77,0.044085]
[1744395513770,8.33613893,120.81,120.78,8.2832]
[1744395514177,0.05423893,120.81,120.78,8.2833]
[1744395514476,0.05423893,120.81,120.77,0.044085]
[1744395514691,0.05423893,120.81,120.79,8.2826]
[1744395516303,0.05423893,120.81,120.8,8.2821]
[1744395518917,10.4866,120.86,120.79,4.5921]
[1744395518918,36.58,120.86,120.79,4.5921]
[1744395519414,36.58,120.86,120.83,8.2796]
[1744395519615,36.58,120.86,120.79,4.5921]
[1744395519818,36.58,120.86,120.8,25.63564433]
[1744395520117,0.05578496,120.84,120.81,0.05248659]
[1744395520419,0.05578496,120.84,120.83,8.28]
[1744395521317,0.05578496,120.84,120.82,8.2806]
[1744395522122,0.05578496,120.84,120.81,8.33358659]
[1744395522327,0.05578496,120.84,120.81,0.05248659]
[1744395522819,0.05578496,120.84,120.83,8.28]
[1744395523611,632.08,120.9,120.82,25.63564433]
[1744395524011,8.2764,120.89,120.82,25.63564433]
[1744395524222,632.08,120.9,120.82,25.63564433]
[1744395524507,632.08,120.9,120.81,36.58]
[1744395524708,0.06290408,120.87,120.85,0.06112341]
[1744395525104,8.278,120.86,120.85,0.06112341]
[1744395525410,0.06290408,120.87,120.85,0.06112341]
[1744395526026,0.06290408,120.87,120.86,8.278]
[1744395531041,0.06290408,120.87,120.85,0.06112341]
[1744395531315,36.56,120.86,120.85,0.06112341]
[1744395531913,44.838,120.86,120.85,0.06112341]
[1744395533003,36.56,120.86,120.79,4.5921]
[1744395533497,62.19564433,120.86,120.79,8.2822]
[1744395533997,8.281,120.82,120.81,0.05607592]
[1744395535196,44.801,120.82,120.81,0.05607592]
[1744395537695,8.2829,120.79,120.76,2.2415]
[1744395537895,36.52,120.82,120.76,2.2415]
[1744395538288,36.52,120.82,120.77,8.2835]
[1744395538598,36.52,120.82,120.76,2.2415]
[1744395538800,8.34051443,120.81,120.78,8.32000956]
[1744395539299,8.2821,120.8,120.78,8.32000956]
[1744395539499,0.05881443,120.81,120.78,8.32000956]
[1744395539800,8.34061443,120.81,120.78,8.32000956]
[1744395541400,0.05881443,120.81,120.78,0.03690956]
[1744395542402,8.34081443,120.81,120.78,8.32000956]
[1744395542599,0.05881443,120.81,120.78,0.03690956]
[1744395542901,8.2824,120.8,120.78,0.03690956]
[1744395543599,0.05881443,120.81,120.78,0.03690956]
[1744395543999,0.05881443,120.81,120.8,8.2821]
[1744395544196,0.05881443,120.81,120.78,4.33110956]
[1744395544398,0.05881443,120.81,120.78,0.03690956]
[1744395544601,8.34071443,120.81,120.78,0.03690956]
[1744395544807,0.05881443,120.81,120.78,0.03690956]
[1744395545203,8.2824,120.8,120.78,0.03690956]
[1744395545503,0.05881443,120.81,120.78,0.03690956]
[1744395546295,16.1017392,120.81,120.78,0.03690956]
[1744395546493,8.2849,120.76,120.7,16.04292477]
[1744395546802,36.54,120.76,120.7,16.04292477]
[1744395547001,36.54,120.76,120.72,16.04292477]
[1744395547203,8.2835,120.78,120.72,16.04292477]
[1744395547404,36.54,120.79,120.75,8.2851]
[1744395547600,0.06133625,120.76,120.75,8.2851]
[1744395547903,0.06133625,120.76,120.72,2.1529]
[1744395548097,0.06133625,120.76,120.74,8.2858]
[1744395548492,0.06133625,120.76,120.75,8.2855]
[1744395549003,0.06133625,120.76,120.73,4.4353]
[1744395549208,0.06133625,120.76,120.74,8.2859]
[1744395549707,8.34633625,120.76,120.73,12.7222]
[1744395549897,0.06133625,120.76,120.73,12.7222]
[1744395550100,0.06133625,120.76,120.7,36.54]
[1744395550403,8.2855,120.75,120.72,8.2872]
[1744395550704,0.06133625,120.76,120.7,36.54]
[1744395551305,0.06133625,120.76,120.69,32.29093449]
[1744395551702,36.54,120.75,120.69,25.67893449]
[1744395551901,36.54,120.75,120.71,8.2878]
[1744395552101,0.05416478,120.73,120.71,8.2878]
[1744395552303,0.05416478,120.73,120.69,25.67893449]
[1744395552503,0.05416478,120.73,120.72,8.2876]
[1744395552705,0.05416478,120.73,120.67,62.21893449]
[1744395553803,8.2876,120.72,120.69,8.2893]
[1744395554407,8.34146478,120.73,120.7,8.2889]
[1744395554611,0.05416478,120.73,120.66,6.5767]
[1744395555402,0.05416478,120.73,120.72,8.2876]
[1744395555607,0.05416478,120.73,120.69,25.67893449]
[1744395555909,0.05416478,120.73,120.72,8.2876]
[1744395557000,38.7938,120.78,120.71,27.80843449]
[1744395557205,36.56,120.78,120.73,25.67893449]
[1744395558113,36.56,120.78,120.77,8.2841]
[1744395559714,0.05297279,120.79,120.77,8.2841]
[1744395559907,0.05297279,120.79,120.78,8.2834]
[1744395561114,0.05297279,120.79,120.77,0.05233699]
[1744395561614,8.2834,120.78,120.77,0.05233699]
[1744395562017,8.2852,120.76,120.72,8.2872]
[1744395562206,8.2852,120.76,120.73,3.59386093]
[1744395562407,8.2852,120.76,120.71,2.1295]
[1744395562612,8.2852,120.76,120.72,3.59429589]
[1744395562811,8.2856,120.75,120.72,8.2872]
[1744395563011,0.06359128,120.75,120.69,25.67893449]
[1744395563217,0.06359128,120.75,120.7,3.59553852]
[1744395563518,0.06359128,120.75,120.71,3.59483806]
[1744395563814,0.06359128,120.75,120.69,25.67893449]
[1744395564014,0.06359128,120.75,120.7,3.59484752]
[1744395564318,0.06359128,120.75,120.68,6.7295]
[1744395564510,0.06359128,120.75,120.69,65.59504856]
[1744395564709,0.06359128,120.75,120.68,6.7295]
[1744395564915,0.06359128,120.75,120.65,62.19893449]
[1744395565110,0.06359128,120.75,120.68,8.2899]
[1744395565111,8.2887,120.71,120.68,8.2899]
[1744395565311,44.86771666,120.71,120.68,8.2899]
[1744395566519,36.57901666,120.71,120.67,8.2906]
[1744395566710,36.52,120.71,120.63,25.67893449]
[1744395566910,0.05970594,120.7,120.67,8.2905]
[1744395567113,0.05970594,120.7,120.62,37.96174003]
[1744395567317,8.2894,120.7,120.67,8.2909]
[1744395567612,0.0593696,120.7,120.63,27.80393449]
[1744395567810,0.0593696,120.7,120.64,3.59343641]
[1744395568006,0.0593696,120.7,120.65,3.59343641]
[1744395568311,0.0593696,120.7,120.63,89.80393449]
[1744395568512,0.0593696,120.7,120.67,8.2906]
[1744395568513,8.3486696,120.7,120.67,8.2906]
[1744395568913,8.2904,120.68,120.64,4.3697]
[1744395569115,36.52,120.67,120.61,25.67893449]
[1744395569314,0.0584802,120.67,120.62,3.59104639]
[1744395569516,0.0584802,120.67,120.65,8.2921]
[1744395569728,0.0584802,120.67,120.61,32.17363449]
[1744395570068,0.0584802,120.67,120.66,8.2917]
[1744395570611,40.777,120.73,120.69,8.2894]